Workbook

Sheet Pivot
A1: VACNCA Historical Expenditure Average Per Unit Per Year
A3: Sum of Per Unit/Yr | C3: Year | L3: Total: | M3: =SUM(M5:M20) -> 387.4307392 | O3: =60*420 -> 25200
A4: Acct Name | B4: Acct Nbr | C4: 2012 | D4: 2013 | E4: 2014 | F4: 2015 | G4: 2016 | H4: 2017 | I4: 2018 | J4: 2019 | K4: 2020 | M4: AVERAGE/Mo
A5: CORDATA BUSINESS PARK | B5: 800 | C5: 39.2825 | D5: 38.41666667 | E5: 43.6 | F5: 45.88333333 | G5: 45.15 | H5: 44.3 | I5: 41.38333333 | J5: 83.48333333 | K5: 49.18333333 | M5: =AVERAGE(C5:K5)/12 -> 3.987800926 | N5: =B5 & " " & A5 -> 800 CORDATA BUSINESS PARK
A6: INSURANCE | B6: 801 | C6: 362.8166667 | D6: 362.8166667 | E6: 362.8166667 | F6: 335.45 | G6: 343.4833333 | H6: 234.1166667 | I6: 237.6166667 | J6: 254.1166667 | K6: 279.8833333 | M6: =AVERAGE(C6:K6)/12 -> 25.67700617 | N6: =B6 & " " & A6 -> 801 INSURANCE
A7: OFFICE EXPENSE | B7: 802 | C7: 25.43333333 | D7: 15.15 | E7: 16.13333333 | F7: 15.91666667 | G7: 14.58333333 | H7: 18.91666667 | I7: 13.21666667 | J7: 11.7 | K7: 15.86666667 | M7: 1.360339506 | N7: 802 OFFICE EXPENSE
A8: CLUBHOUSE UTILITIES | B8: 804 | C8: 18.83333333 | D8: 17.6 | E8: 18.16666667 | F8: 16.91666667 | G8: 17.8 | H8: 14.2 | I8: 12.18333333 | J8: 11.06666667 | K8: 11.83333333 | M8: 1.283333333 | N8: 804 CLUBHOUSE UTILITIES
A9: CLUBHOUSE CLEANING/SUPPLIES | B9: 805 | C9: 11.41666667 | D9: 10.36666667 | E9: 12.85 | F9: 13.81666667 | G9: 13.85 | H9: 15.96666667 | I9: 12.5 | J9: 9.533333333 | K9: 9.4 | M9: 1.015740741 | N9: 805 CLUBHOUSE CLEANING/SUPPLIES
A10: GENERAL MAINTENANCE | B10: 806 | C10: 307.9833333 | D10: 290.0666667 | E10: 333.35 | F10: 311.0166667 | G10: 326.8166667 | H10: 312.3833333 | I10: 307.3 | J10: 318.0666667 | K10: 334.6166667 | M10: 26.31111111 | N10: 806 GENERAL MAINTENANCE
A11: PROFESSIONAL SERVICES | B11: 807 | C11: 75.5 | D11: 40.16666667 | E11: 25.66666667 | F11: 61.41666667 | G11: 55.1 | H11: 64 | I11: 101.8333333 | J11: 52.16666667 | K11: 62.33333333 | M11: 4.983179012 | N11: 807 PROFESSIONAL SERVICES
A12: SUBSCRIPTIONS & DUES | B12: 808 | C12: 5.803833333 | D12: 4 | E12: 3.333333333 | F12: 3.75 | G12: 3.75 | H12: 8.3 | I12: 7.133333333 | J12: 4.083333333 | K12: 4.083333333 | M12: 0.4096033951 | N12: 808 SUBSCRIPTIONS & DUES
A13: WATER & SEWER | B13: 810 | C13: 763.0833333 | D13: 820.6833333 | E13: 877.0333333 | F13: 896.0333333 | G13: 957.2833333 | H13: 1005.75 | I13: 1067.516667 | J13: 1118.5 | K13: 1073.4 | M13: 79.43780864 | N13: 810 WATER & SEWER
A14: LANDSCAPE-GENERAL | B14: 811 | C14: 1059.966667 | D14: 1059.166667 | E14: 1060.783333 | F14: 1068.783333 | G14: 1066.133333 | H14: 1124.583333 | I14: 1237.3 | J14: 1243.45 | K14: 1299.683333 | M14: 94.62824074 | N14: 811 LANDSCAPE-GENERAL
A15: LANDSCAPE-PLANTS & BARK | B15: 813 | C15: 63.87016667 | D15: 69.95 | E15: 78.25 | F15: 43.9 | G15: 66.88333333 | H15: 49.43333333 | I15: 60.61666667 | J15: 64.3 | K15: 60.56666667 | M15: 5.16453858 | N15: 813 LANDSCAPE-PLANTS & BARK
A16: COMCAST CABLE | B16: 814 | C16: 621.8166667 | D16: 661.3166667 | E16: 695.4666667 | F16: 723.8333333 | G16: 570.0833333 | H16: 564.65 | I16: 592.9 | J16: 584.3666667 | K16: 474.55 | M16: 50.82391975 | N16: 814 COMCAST CABLE
A17: CONTINGENCY FUND | B17: 899 | C17: 26.66666667 | D17: 0 | E17: 0 | H17: 134.6 | K17: 0 | M17: 2.687777778 | N17: 899 CONTINGENCY FUND
A18: RESERVE FUND ACCOUNT | B18: 816 | C18: 1015 | D18: 940 | E18: 940 | F18: 1004 | G18: 1123.85 | H18: 966.7333333 | I18: 1145 | J18: 1252.35 | K18: 1296.383333 | M18: 89.66033951 | N18: 816 RESERVE FUND ACCOUNT
A19: PROPERTY MANAGEMENT | B19: 818 | G19: 0 | M19: 0 | N19: 818 PROPERTY MANAGEMENT
N20: =B20 & " " & A20 -> 

Sheet ExpenseDB
A1: Year | B1: Acct Nbr | C1: Acct Name | D1: Amount | E1: BudgetActual | F1: Expense Reserve | G1: Notes | H1: Per Unit/Yr | I1: Per Unit/Month
A2: 2012 | B2: 800 | C2: CORDATA BUSINESS PARK | D2: 2400 | E2: Budget | F2: Expense | H2: =D2/60 -> 40 | I2: =H2/12 -> 3.333333333
A3: 2012 | B3: 800 | C3: CORDATA BUSINESS PARK | D3: 2356.95 | E3: Actual | F3: Expense | H3: =D3/60 -> 39.2825 | I3: =H3/12 -> 3.273541667
A4: 2012 | B4: 801 | C4: INSURANCE | D4: 18000 | E4: Budget | F4: Expense | H4: =D4/60 -> 300 | I4: =H4/12 -> 25
A5: 2012 | B5: 801 | C5: INSURANCE | D5: 21769 | E5: Actual | F5: Expense | H5: =D5/60 -> 362.8166667 | I5: =H5/12 -> 30.23472222
A6: 2012 | B6: 802 | C6: OFFICE EXPENSE | D6: 1000 | E6: Budget | F6: Expense | H6: =D6/60 -> 16.66666667 | I6: =H6/12 -> 1.388888889
A7: 2012 | B7: 802 | C7: OFFICE EXPENSE | D7: 1526 | E7: Actual | F7: Expense | H7: =D7/60 -> 25.43333333 | I7: =H7/12 -> 2.119444444
A8: 2012 | B8: 804 | C8: CLUBHOUSE UTILITIES | D8: 1400 | E8: Budget | F8: Expense | H8: =D8/60 -> 23.33333333 | I8: =H8/12 -> 1.944444444
A9: 2012 | B9: 804 | C9: CLUBHOUSE UTILITIES | D9: 1130 | E9: Actual | F9: Expense | H9: =D9/60 -> 18.83333333 | I9: =H9/12 -> 1.569444444
A10: 2012 | B10: 805 | C10: CLUBHOUSE CLEANING/SUPPLIES | D10: 800 | E10: Budget | F10: Expense | H10: =D10/60 -> 13.33333333 | I10: =H10/12 -> 1.111111111
A11: 2012 | B11: 805 | C11: CLUBHOUSE CLEANING/SUPPLIES | D11: 685 | E11: Actual | F11: Expense | H11: =D11/60 -> 11.41666667 | I11: =H11/12 -> 0.9513888889
A12: 2012 | B12: 806 | C12: GENERAL MAINTENANCE | D12: 20000 | E12: Budget | F12: Expense | H12: =D12/60 -> 333.3333333 | I12: =H12/12 -> 27.77777778
A13: 2012 | B13: 806 | C13: GENERAL MAINTENANCE | D13: 18479 | E13: Actual | F13: Expense | H13: =D13/60 -> 307.9833333 | I13: =H13/12 -> 25.66527778
A14: 2012 | B14: 807 | C14: PROFESSIONAL SERVICES | D14: 2200 | E14: Budget | F14: Expense | H14: =D14/60 -> 36.66666667 | I14: =H14/12 -> 3.055555556
A15: 2012 | B15: 807 | C15: PROFESSIONAL SERVICES | D15: 4530 | E15: Actual | F15: Expense | H15: =D15/60 -> 75.5 | I15: =H15/12 -> 6.291666667
A16: 2012 | B16: 808 | C16: SUBSCRIPTIONS & DUES | D16: 400 | E16: Budget | F16: Expense | H16: =D16/60 -> 6.666666667 | I16: =H16/12 -> 0.5555555556
A17: 2012 | B17: 808 | C17: SUBSCRIPTIONS & DUES | D17: 348.23 | E17: Actual | F17: Expense | H17: =D17/60 -> 5.803833333 | I17: =H17/12 -> 0.4836527778
A18: 2012 | B18: 810 | C18: WATER & SEWER | D18: 50000 | E18: Budget | F18: Expense | H18: =D18/60 -> 833.3333333 | I18: =H18/12 -> 69.44444444
A19: 2012 | B19: 810 | C19: WATER & SEWER | D19: 45785 | E19: Actual | F19: Expense | H19: =D19/60 -> 763.0833333 | I19: =H19/12 -> 63.59027778
A20: 2012 | B20: 811 | C20: LANDSCAPE-GENERAL | D20: 65000 | E20: Budget | F20: Expense | H20: =D20/60 -> 1083.333333 | I20: =H20/12 -> 90.27777778
A21: 2012 | B21: 811 | C21: LANDSCAPE-GENERAL | D21: 63598 | E21: Actual | F21: Expense | H21: =D21/60 -> 1059.966667 | I21: =H21/12 -> 88.33055556
A22: 2012 | B22: 813 | C22: LANDSCAPE-PLANTS & BARK | D22: 4000 | E22: Budget | F22: Expense | H22: =D22/60 -> 66.66666667 | I22: =H22/12 -> 5.555555556
A23: 2012 | B23: 813 | C23: LANDSCAPE-PLANTS & BARK | D23: 3832.21 | E23: Actual | F23: Expense | H23: =D23/60 -> 63.87016667 | I23: =H23/12 -> 5.322513889
A24: 2012 | B24: 814 | C24: COMCAST CABLE | D24: 38000 | E24: Budget | F24: Expense | H24: =D24/60 -> 633.3333333 | I24: =H24/12 -> 52.77777778
A25: 2012 | B25: 814 | C25: COMCAST CABLE | D25: 37309 | E25: Actual | F25: Expense | H25: =D25/60 -> 621.8166667 | I25: =H25/12 -> 51.81805556
A26: 2012 | B26: 816 | C26: RESERVE FUND ACCOUNT | D26: 56000 | E26: Budget | F26: Expense | H26: =D26/60 -> 933.3333333 | I26: =H26/12 -> 77.77777778
A27: 2012 | B27: 816 | C27: RESERVE FUND ACCOUNT | D27: 60900 | E27: Actual | F27: Expense | H27: =D27/60 -> 1015 | I27: =H27/12 -> 84.58333333
A28: 2012 | B28: 819 | C28: BUILDING STRUCTURE | D28: 43654.5 | E28: Actual | F28: Reserve | H28: =D28/60 -> 727.575 | I28: =H28/12 -> 60.63125
A29: 2012 | B29: 819 | C29: BUILDING STRUCTURE | D29: 45000 | E29: Budget | F29: Reserve | H29: =D29/60 -> 750 | I29: =H29/12 -> 62.5
A30: 2012 | B30: 821 | C30: DRAINAGE | D30: 3739 | E30: Actual | F30: Reserve | H30: =D30/60 -> 62.31666667 | I30: =H30/12 -> 5.193055556
A31: 2012 | B31: 821 | C31: DRAINAGE | D31: 3000 | E31: Budget | F31: Reserve | H31: =D31/60 -> 50 | I31: =H31/12 -> 4.166666667
A32: 2012 | B32: 822 | C32: GRAVEL PATHWAYS | D32: 0 | E32: Actual | F32: Reserve | H32: =D32/60 -> 0 | I32: =H32/12 -> 0
A33: 2012 | B33: 822 | C33: GRAVEL PATHWAYS | D33: 0 | E33: Budget | F33: Reserve | H33: =D33/60 -> 0 | I33: =H33/12 -> 0
A34: 2012 | B34: 899 | C34: CONTINGENCY FUND | D34: 4000 | E34: Budget | F34: Expense | H34: =D34/60 -> 66.66666667 | I34: =H34/12 -> 5.555555556
A35: 2012 | B35: 899 | C35: CONTINGENCY FUND | D35: 1600 | E35: Actual | F35: Expense | H35: =D35/60 -> 26.66666667 | I35: =H35/12 -> 2.222222222
A36: 2012 | B36: 914 | C36: PAINTING | D36: 14000 | E36: Budget | F36: Reserve | H36: =D36/60 -> 233.3333333 | I36: =H36/12 -> 19.44444444
A37: 2012 | B37: 914 | C37: PAINTING | D37: 13527.34 | E37: Actual | F37: Reserve | H37: =D37/60 -> 225.4556667 | I37: =H37/12 -> 18.78797222
A38: 2013 | B38: 800 | C38: CORDATA BUSINESS PARK | D38: 2400 | E38: Budget | F38: Expense | H38: =D38/60 -> 40 | I38: =H38/12 -> 3.333333333
A39: 2013 | B39: 800 | C39: CORDATA BUSINESS PARK | D39: 2305 | E39: Actual | F39: Expense | H39: =D39/60 -> 38.41666667 | I39: =H39/12 -> 3.201388889
A40: 2013 | B40: 801 | C40: INSURANCE | D40: 22000 | E40: Budget | F40: Expense | H40: =D40/60 -> 366.6666667 | I40: =H40/12 -> 30.55555556
A41: 2013 | B41: 801 | C41: INSURANCE | D41: 21769 | E41: Actual | F41: Expense | H41: =D41/60 -> 362.8166667 | I41: =H41/12 -> 30.23472222
A42: 2013 | B42: 802 | C42: OFFICE EXPENSE | D42: 1300 | E42: Budget | F42: Expense | H42: =D42/60 -> 21.66666667 | I42: =H42/12 -> 1.805555556
A43: 2013 | B43: 802 | C43: OFFICE EXPENSE | D43: 909 | E43: Actual | F43: Expense | H43: =D43/60 -> 15.15 | I43: =H43/12 -> 1.2625
A44: 2013 | B44: 804 | C44: CLUBHOUSE UTILITIES | D44: 1400 | E44: Budget | F44: Expense | H44: =D44/60 -> 23.33333333 | I44: =H44/12 -> 1.944444444
A45: 2013 | B45: 804 | C45: CLUBHOUSE UTILITIES | D45: 1056 | E45: Actual | F45: Expense | H45: =D45/60 -> 17.6 | I45: =H45/12 -> 1.466666667
A46: 2013 | B46: 805 | C46: CLUBHOUSE CLEANING/SUPPLIES | D46: 800 | E46: Budget | F46: Expense | H46: =D46/60 -> 13.33333333 | I46: =H46/12 -> 1.111111111
A47: 2013 | B47: 805 | C47: CLUBHOUSE CLEANING/SUPPLIES | D47: 622 | E47: Actual | F47: Expense | H47: =D47/60 -> 10.36666667 | I47: =H47/12 -> 0.8638888889
A48: 2013 | B48: 806 | C48: GENERAL MAINTENANCE | D48: 20000 | E48: Budget | F48: Expense | H48: =D48/60 -> 333.3333333 | I48: =H48/12 -> 27.77777778
A49: 2013 | B49: 806 | C49: GENERAL MAINTENANCE | D49: 17404 | E49: Actual | F49: Expense | H49: =D49/60 -> 290.0666667 | I49: =H49/12 -> 24.17222222
A50: 2013 | B50: 807 | C50: PROFESSIONAL SERVICES | D50: 2600 | E50: Budget | F50: Expense | H50: =D50/60 -> 43.33333333 | I50: =H50/12 -> 3.611111111
A51: 2013 | B51: 807 | C51: PROFESSIONAL SERVICES | D51: 2410 | E51: Actual | F51: Expense | H51: =D51/60 -> 40.16666667 | I51: =H51/12 -> 3.347222222
A52: 2013 | B52: 808 | C52: SUBSCRIPTIONS & DUES | D52: 500 | E52: Budget | F52: Expense | H52: =D52/60 -> 8.333333333 | I52: =H52/12 -> 0.6944444444
A53: 2013 | B53: 808 | C53: SUBSCRIPTIONS & DUES | D53: 240 | E53: Actual | F53: Expense | H53: =D53/60 -> 4 | I53: =H53/12 -> 0.3333333333
A54: 2013 | B54: 810 | C54: WATER & SEWER | D54: 50000 | E54: Budget | F54: Expense | H54: =D54/60 -> 833.3333333 | I54: =H54/12 -> 69.44444444
A55: 2013 | B55: 810 | C55: WATER & SEWER | D55: 49241 | E55: Actual | F55: Expense | H55: =D55/60 -> 820.6833333 | I55: =H55/12 -> 68.39027778
A56: 2013 | B56: 811 | C56: LANDSCAPE-GENERAL | D56: 65000 | E56: Budget | F56: Expense | H56: =D56/60 -> 1083.333333 | I56: =H56/12 -> 90.27777778
A57: 2013 | B57: 811 | C57: LANDSCAPE-GENERAL | D57: 63550 | E57: Actual | F57: Expense | H57: =D57/60 -> 1059.166667 | I57: =H57/12 -> 88.26388889
A58: 2013 | B58: 813 | C58: LANDSCAPE-PLANTS & BARK | D58: 4000 | E58: Budget | F58: Expense | H58: =D58/60 -> 66.66666667 | I58: =H58/12 -> 5.555555556
A59: 2013 | B59: 813 | C59: LANDSCAPE-PLANTS & BARK | D59: 4197 | E59: Actual | F59: Expense | H59: =D59/60 -> 69.95 | I59: =H59/12 -> 5.829166667
A60: 2013 | B60: 814 | C60: COMCAST CABLE | D60: 40000 | E60: Budget | F60: Expense | H60: =D60/60 -> 666.6666667 | I60: =H60/12 -> 55.55555556
A61: 2013 | B61: 814 | C61: COMCAST CABLE | D61: 39679 | E61: Actual | F61: Expense | H61: =D61/60 -> 661.3166667 | I61: =H61/12 -> 55.10972222
A62: 2013 | B62: 816 | C62: RESERVE FUND ACCOUNT | D62: 56000 | E62: Budget | F62: Expense | H62: =D62/60 -> 933.3333333 | I62: =H62/12 -> 77.77777778
A63: 2013 | B63: 816 | C63: RESERVE FUND ACCOUNT | D63: 56400 | E63: Actual | F63: Expense | H63: =D63/60 -> 940 | I63: =H63/12 -> 78.33333333
A64: 2013 | B64: 821 | C64: DRAINAGE | D64: 4000 | E64: Budget | F64: Reserve | H64: =D64/60 -> 66.66666667 | I64: =H64/12 -> 5.555555556
A65: 2013 | B65: 821 | C65: DRAINAGE | D65: 1498 | E65: Actual | F65: Reserve | H65: =D65/60 -> 24.96666667 | I65: =H65/12 -> 2.080555556
A66: 2013 | B66: 899 | C66: CONTINGENCY FUND | D66: 5000 | E66: Budget | F66: Expense | H66: =D66/60 -> 83.33333333 | I66: =H66/12 -> 6.944444444
A67: 2013 | B67: 899 | C67: CONTINGENCY FUND | D67: 0 | E67: Actual | F67: Expense | H67: =D67/60 -> 0 | I67: =H67/12 -> 0
A68: 2013 | B68: 900 | C68: ASPHALT REPAIRS | D68: 0 | E68: Budget | F68: Reserve | H68: =D68/60 -> 0 | I68: =H68/12 -> 0
A69: 2013 | B69: 900 | C69: ASPHALT REPAIR | D69: 2193 | E69: Actual | F69: Reserve | H69: =D69/60 -> 36.55 | I69: =H69/12 -> 3.045833333
A70: 2013 | B70: 914 | C70: PAINTING | D70: 16000 | E70: Budget | F70: Reserve | H70: =D70/60 -> 266.6666667 | I70: =H70/12 -> 22.22222222
A71: 2013 | B71: 914 | C71: PAINTING | D71: 18750 | E71: Actual | F71: Reserve | H71: =D71/60 -> 312.5 | I71: =H71/12 -> 26.04166667
A72: 2013 | B72: 919 | C72: LANDSCAPE WALKING PATH | D72: 10000 | E72: Budget | F72: Reserve | H72: =D72/60 -> 166.6666667 | I72: =H72/12 -> 13.88888889
A73: 2013 | B73: 919 | C73: LANDSCAPE WALKING PATH | D73: 9240 | E73: Actual | F73: Reserve | H73: =D73/60 -> 154 | I73: =H73/12 -> 12.83333333
A74: 2013 | B74: 926 | C74: SIDING & TRIM REPAIR | D74: 0 | E74: Budget | F74: Reserve | H74: =D74/60 -> 0 | I74: =H74/12 -> 0
A75: 2013 | B75: 926 | C75: SIDING & TRIM REPAIR | D75: 0 | E75: Actual | F75: Reserve | H75: =D75/60 -> 0 | I75: =H75/12 -> 0
A76: 2013 | B76: 927 | C76: WINDOW REPLACEMENT | D76: 20000 | E76: Budget | F76: Reserve | H76: =D76/60 -> 333.3333333 | I76: =H76/12 -> 27.77777778
A77: 2013 | B77: 927 | C77: WINDOW REPLACEMENT | D77: 16572 | E77: Actual | F77: Reserve | H77: =D77/60 -> 276.2 | I77: =H77/12 -> 23.01666667
A78: 2014 | B78: 800 | C78: CORDATA BUSINESS PARK | D78: 2400 | E78: Budget | F78: Expense | H78: =D78/60 -> 40 | I78: =H78/12 -> 3.333333333
A79: 2014 | B79: 800 | C79: CORDATA BUSINESS PARK | D79: 2616 | E79: Actual | F79: Expense | H79: =D79/60 -> 43.6 | I79: =H79/12 -> 3.633333333
A80: 2014 | B80: 801 | C80: INSURANCE | D80: 22000 | E80: Budget | F80: Expense | H80: =D80/60 -> 366.6666667 | I80: =H80/12 -> 30.55555556
A81: 2014 | B81: 801 | C81: INSURANCE | D81: 21769 | E81: Actual | F81: Expense | H81: =D81/60 -> 362.8166667 | I81: =H81/12 -> 30.23472222
A82: 2014 | B82: 802 | C82: OFFICE EXPENSE | D82: 1400 | E82: Budget | F82: Expense | H82: =D82/60 -> 23.33333333 | I82: =H82/12 -> 1.944444444
A83: 2014 | B83: 802 | C83: OFFICE EXPENSE | D83: 968 | E83: Actual | F83: Expense | H83: =D83/60 -> 16.13333333 | I83: =H83/12 -> 1.344444444
A84: 2014 | B84: 804 | C84: CLUBHOUSE UTILITIES | D84: 1200 | E84: Budget | F84: Expense | H84: =D84/60 -> 20 | I84: =H84/12 -> 1.666666667
A85: 2014 | B85: 804 | C85: CLUBHOUSE UTILITIES | D85: 1090 | E85: Actual | F85: Expense | H85: =D85/60 -> 18.16666667 | I85: =H85/12 -> 1.513888889
A86: 2014 | B86: 805 | C86: CLUBHOUSE CLEANING/SUPPLIES | D86: 800 | E86: Budget | F86: Expense | H86: =D86/60 -> 13.33333333 | I86: =H86/12 -> 1.111111111
A87: 2014 | B87: 805 | C87: CLUBHOUSE CLEANING/SUPPLIES | D87: 771 | E87: Actual | F87: Expense | H87: =D87/60 -> 12.85 | I87: =H87/12 -> 1.070833333
A88: 2014 | B88: 806 | C88: GENERAL MAINTENANCE | D88: 19000 | E88: Budget | F88: Expense | H88: =D88/60 -> 316.6666667 | I88: =H88/12 -> 26.38888889
A89: 2014 | B89: 806 | C89: GENERAL MAINTENANCE | D89: 20001 | E89: Actual | F89: Expense | H89: =D89/60 -> 333.35 | I89: =H89/12 -> 27.77916667
A90: 2014 | B90: 807 | C90: PROFESSIONAL SERVICES | D90: 2600 | E90: Budget | F90: Expense | H90: =D90/60 -> 43.33333333 | I90: =H90/12 -> 3.611111111
A91: 2014 | B91: 807 | C91: PROFESSIONAL SERVICES | D91: 1540 | E91: Actual | F91: Expense | H91: =D91/60 -> 25.66666667 | I91: =H91/12 -> 2.138888889
A92: 2014 | B92: 808 | C92: SUBSCRIPTIONS & DUES | D92: 400 | E92: Budget | F92: Expense | H92: =D92/60 -> 6.666666667 | I92: =H92/12 -> 0.5555555556
A93: 2014 | B93: 808 | C93: SUBSCRIPTIONS & DUES | D93: 200 | E93: Actual | F93: Expense | H93: =D93/60 -> 3.333333333 | I93: =H93/12 -> 0.2777777778
A94: 2014 | B94: 810 | C94: WATER & SEWER | D94: 55000 | E94: Budget | F94: Expense | H94: =D94/60 -> 916.6666667 | I94: =H94/12 -> 76.38888889
A95: 2014 | B95: 810 | C95: WATER & SEWER | D95: 52622 | E95: Actual | F95: Expense | H95: =D95/60 -> 877.0333333 | I95: =H95/12 -> 73.08611111
A96: 2014 | B96: 811 | C96: LANDSCAPE-GENERAL | D96: 65000 | E96: Budget | F96: Expense | H96: =D96/60 -> 1083.333333 | I96: =H96/12 -> 90.27777778
A97: 2014 | B97: 811 | C97: LANDSCAPE-GENERAL | D97: 63647 | E97: Actual | F97: Expense | H97: =D97/60 -> 1060.783333 | I97: =H97/12 -> 88.39861111
A98: 2014 | B98: 813 | C98: LANDSCAPE-PLANTS & BARK | D98: 4000 | E98: Budget | F98: Expense | H98: =D98/60 -> 66.66666667 | I98: =H98/12 -> 5.555555556
A99: 2014 | B99: 813 | C99: LANDSCAPE-PLANTS & BARK | D99: 4695 | E99: Actual | F99: Expense | H99: =D99/60 -> 78.25 | I99: =H99/12 -> 6.520833333
A100: 2014 | B100: 814 | C100: COMCAST CABLE | D100: 43000 | E100: Budget | F100: Expense | H100: =D100/60 -> 716.6666667 | I100: =H100/12 -> 59.72222222
A101: 2014 | B101: 814 | C101: COMCAST CABLE | D101: 41728 | E101: Actual | F101: Expense | H101: =D101/60 -> 695.4666667 | I101: =H101/12 -> 57.95555556
A102: 2014 | B102: 816 | C102: RESERVE FUND ACCOUNT | D102: 56400 | E102: Budget | F102: Expense | H102: =D102/60 -> 940 | I102: =H102/12 -> 78.33333333
A103: 2014 | B103: 816 | C103: RESERVE FUND ACCOUNT | D103: 56400 | E103: Actual | F103: Expense | H103: =D103/60 -> 940 | I103: =H103/12 -> 78.33333333
A104: 2014 | B104: 899 | C104: CONTINGENCY FUND | D104: 5000 | E104: Budget | F104: Expense | H104: =D104/60 -> 83.33333333 | I104: =H104/12 -> 6.944444444
A105: 2014 | B105: 899 | C105: CONTINGENCY FUND | D105: 0 | E105: Actual | F105: Expense | H105: =D105/60 -> 0 | I105: =H105/12 -> 0
A106: 2014 | B106: 900 | C106: ASPHALT REPAIRS | D106: 2500 | E106: Budget | F106: Reserve | H106: =D106/60 -> 41.66666667 | I106: =H106/12 -> 3.472222222
A107: 2014 | B107: 900 | C107: ASPHALT REPAIR | D107: 4109 | E107: Actual | F107: Reserve | H107: =D107/60 -> 68.48333333 | I107: =H107/12 -> 5.706944444
A108: 2014 | B108: 905 | C108: CLUB HOUSE CARPET | D108: 0 | E108: Budget | F108: Reserve | H108: =D108/60 -> 0 | I108: =H108/12 -> 0
A109: 2014 | B109: 905 | C109: CLUB HOUSE CARPET | D109: 0 | E109: Actual | F109: Reserve | H109: =D109/60 -> 0 | I109: =H109/12 -> 0
A110: 2014 | B110: 914 | C110: PAINTING | D110: 16000 | E110: Budget | F110: Reserve | H110: =D110/60 -> 266.6666667 | I110: =H110/12 -> 22.22222222
A111: 2014 | B111: 914 | C111: PAINTING | D111: 16403 | E111: Actual | F111: Reserve | H111: =D111/60 -> 273.3833333 | I111: =H111/12 -> 22.78194444
A112: 2014 | B112: 915 | C112: GARAGE DOORS & OPERATORS | D112: 0 | E112: Budget | F112: Reserve | H112: =D112/60 -> 0 | I112: =H112/12 -> 0
A113: 2014 | B113: 915 | C113: GARAGE DOORS & OPERATORS | D113: 1575 | E113: Actual | F113: Reserve | H113: =D113/60 -> 26.25 | I113: =H113/12 -> 2.1875
A114: 2014 | B114: 916 | C114: GUTTERS & DOWNSPOUTS | D114: 0 | E114: Budget | F114: Reserve | H114: =D114/60 -> 0 | I114: =H114/12 -> 0
A115: 2014 | B115: 916 | C115: GUTTERS & DOWNSPOUTS | D115: 627 | E115: Actual | F115: Reserve | H115: =D115/60 -> 10.45 | I115: =H115/12 -> 0.8708333333
A116: 2014 | B116: 917 | C116: HVAC FURNACE | D116: 0 | E116: Budget | F116: Reserve | H116: =D116/60 -> 0 | I116: =H116/12 -> 0
A117: 2014 | B117: 917 | C117: HVAC FURNACE | D117: 0 | E117: Actual | F117: Reserve | H117: =D117/60 -> 0 | I117: =H117/12 -> 0
A118: 2014 | B118: 918 | C118: IRRIGATION SYSTEM RESTORATION | D118: 0 | E118: Budget | F118: Reserve | H118: =D118/60 -> 0 | I118: =H118/12 -> 0
A119: 2014 | B119: 918 | C119: IRRIGATION SYSTEM RESTORATION | D119: 659 | E119: Actual | F119: Reserve | H119: =D119/60 -> 10.98333333 | I119: =H119/12 -> 0.9152777778
A120: 2014 | B120: 919 | C120: LANDSCAPE WALKING PATH | D120: 10000 | E120: Budget | F120: Reserve | H120: =D120/60 -> 166.6666667 | I120: =H120/12 -> 13.88888889
A121: 2014 | B121: 919 | C121: LANDSCAPE WALKING PATH | D121: 9240 | E121: Actual | F121: Reserve | H121: =D121/60 -> 154 | I121: =H121/12 -> 12.83333333
A122: 2014 | B122: 922 | C122: MAJOR LANDSCAPE RESTORATION | D122: 0 | E122: Budget | F122: Reserve | H122: =D122/60 -> 0 | I122: =H122/12 -> 0
A123: 2014 | B123: 922 | C123: MAJOR LANDSCAPE RESTORATION | D123: 1220 | E123: Actual | F123: Reserve | H123: =D123/60 -> 20.33333333 | I123: =H123/12 -> 1.694444444
A124: 2014 | B124: 925 | C124: CLUB HOUSE WATER HEATER | D124: 0 | E124: Budget | F124: Reserve | H124: =D124/60 -> 0 | I124: =H124/12 -> 0
A125: 2014 | B125: 925 | C125: CLUB HOUSE WATER HEATER | D125: 0 | E125: Actual | F125: Reserve | H125: =D125/60 -> 0 | I125: =H125/12 -> 0
A126: 2014 | B126: 926 | C126: SIDING & TRIM REPAIR | D126: 6000 | E126: Budget | F126: Reserve | H126: =D126/60 -> 100 | I126: =H126/12 -> 8.333333333
A127: 2014 | B127: 926 | C127: SIDING & TRIM REPAIR | D127: 8385 | E127: Actual | F127: Reserve | H127: =D127/60 -> 139.75 | I127: =H127/12 -> 11.64583333
A128: 2014 | B128: 927 | C128: WINDOW REPLACEMENT | D128: 12000 | E128: Budget | F128: Reserve | H128: =D128/60 -> 200 | I128: =H128/12 -> 16.66666667
A129: 2014 | B129: 927 | C129: WINDOW REPLACEMENT | D129: 9857 | E129: Actual | F129: Reserve | H129: =D129/60 -> 164.2833333 | I129: =H129/12 -> 13.69027778
A130: 2015 | B130: 800 | C130: CORDATA BUSINESS PARK | D130: 2650 | E130: Budget | F130: Expense | H130: =D130/60 -> 44.16666667 | I130: =H130/12 -> 3.680555556
A131: 2015 | B131: 800 | C131: CORDATA BUSINESS PARK | D131: 2753 | E131: Actual | F131: Expense | H131: =D131/60 -> 45.88333333 | I131: =H131/12 -> 3.823611111
A132: 2015 | B132: 801 | C132: INSURANCE | D132: 23000 | E132: Budget | F132: Expense | H132: =D132/60 -> 383.3333333 | I132: =H132/12 -> 31.94444444
A133: 2015 | B133: 801 | C133: INSURANCE | D133: 20127 | E133: Actual | F133: Expense | H133: =D133/60 -> 335.45 | I133: =H133/12 -> 27.95416667
A134: 2015 | B134: 802 | C134: OFFICE EXPENSE | D134: 1200 | E134: Budget | F134: Expense | H134: =D134/60 -> 20 | I134: =H134/12 -> 1.666666667
A135: 2015 | B135: 802 | C135: OFFICE EXPENSE | D135: 955 | E135: Actual | F135: Expense | H135: =D135/60 -> 15.91666667 | I135: =H135/12 -> 1.326388889
A136: 2015 | B136: 804 | C136: CLUBHOUSE UTILITIES | D136: 1500 | E136: Budget | F136: Expense | H136: =D136/60 -> 25 | I136: =H136/12 -> 2.083333333
A137: 2015 | B137: 804 | C137: CLUBHOUSE UTILITIES | D137: 1015 | E137: Actual | F137: Expense | H137: =D137/60 -> 16.91666667 | I137: =H137/12 -> 1.409722222
A138: 2015 | B138: 805 | C138: CLUBHOUSE CLEANING/SUPPLIES | D138: 850 | E138: Budget | F138: Expense | H138: =D138/60 -> 14.16666667 | I138: =H138/12 -> 1.180555556
A139: 2015 | B139: 805 | C139: CLUBHOUSE CLEANING/SUPPLIES | D139: 829 | E139: Actual | F139: Expense | H139: =D139/60 -> 13.81666667 | I139: =H139/12 -> 1.151388889
A140: 2015 | B140: 806 | C140: GENERAL MAINTENANCE | D140: 20000 | E140: Budget | F140: Expense | H140: =D140/60 -> 333.3333333 | I140: =H140/12 -> 27.77777778
A141: 2015 | B141: 806 | C141: GENERAL MAINTENANCE | D141: 18661 | E141: Actual | F141: Expense | H141: =D141/60 -> 311.0166667 | I141: =H141/12 -> 25.91805556
A142: 2015 | B142: 807 | C142: PROFESSIONAL SERVICES | D142: 3800 | E142: Budget | F142: Expense | H142: =D142/60 -> 63.33333333 | I142: =H142/12 -> 5.277777778
A143: 2015 | B143: 807 | C143: PROFESSIONAL SERVICES | D143: 3685 | E143: Actual | F143: Expense | H143: =D143/60 -> 61.41666667 | I143: =H143/12 -> 5.118055556
A144: 2015 | B144: 808 | C144: SUBSCRIPTIONS & DUES | D144: 300 | E144: Budget | F144: Expense | H144: =D144/60 -> 5 | I144: =H144/12 -> 0.4166666667
A145: 2015 | B145: 808 | C145: SUBSCRIPTIONS & DUES | D145: 225 | E145: Actual | F145: Expense | H145: =D145/60 -> 3.75 | I145: =H145/12 -> 0.3125
A146: 2015 | B146: 810 | C146: WATER & SEWER | D146: 56500 | E146: Budget | F146: Expense | H146: =D146/60 -> 941.6666667 | I146: =H146/12 -> 78.47222222
A147: 2015 | B147: 810 | C147: WATER & SEWER | D147: 53762 | E147: Actual | F147: Expense | H147: =D147/60 -> 896.0333333 | I147: =H147/12 -> 74.66944444
A148: 2015 | B148: 811 | C148: LANDSCAPE-GENERAL | D148: 64000 | E148: Budget | F148: Expense | H148: =D148/60 -> 1066.666667 | I148: =H148/12 -> 88.88888889
A149: 2015 | B149: 811 | C149: LANDSCAPE-GENERAL | D149: 64127 | E149: Actual | F149: Expense | H149: =D149/60 -> 1068.783333 | I149: =H149/12 -> 89.06527778
A150: 2015 | B150: 813 | C150: LANDSCAPE-PLANTS & BARK | D150: 3300 | E150: Budget | F150: Expense | H150: =D150/60 -> 55 | I150: =H150/12 -> 4.583333333
A151: 2015 | B151: 813 | C151: LANDSCAPE-PLANTS & BARK | D151: 2634 | E151: Actual | F151: Expense | H151: =D151/60 -> 43.9 | I151: =H151/12 -> 3.658333333
A152: 2015 | B152: 814 | C152: COMCAST CABLE | D152: 44700 | E152: Budget | F152: Expense | H152: =D152/60 -> 745 | I152: =H152/12 -> 62.08333333
A153: 2015 | B153: 814 | C153: COMCAST CABLE | D153: 43430 | E153: Actual | F153: Expense | H153: =D153/60 -> 723.8333333 | I153: =H153/12 -> 60.31944444
A154: 2015 | B154: 816 | C154: RESERVE FUND ACCOUNT | D154: 56400 | E154: Budget | F154: Expense | H154: =D154/60 -> 940 | I154: =H154/12 -> 78.33333333
A155: 2015 | B155: 816 | C155: RESERVE FUND ACCOUNT | D155: 60240 | E155: Actual | F155: Expense | H155: =D155/60 -> 1004 | I155: =H155/12 -> 83.66666667
A156: 2015 | B156: 900 | C156: ASPHALT REPAIR | D156: 0 | E156: Budget | F156: Reserve | H156: =D156/60 -> 0 | I156: =H156/12 -> 0
A157: 2015 | B157: 900 | C157: ASPHALT REPAIR | D157: 0 | E157: Actual | F157: Reserve | H157: =D157/60 -> 0 | I157: =H157/12 -> 0
A158: 2015 | B158: 905 | C158: CLUB HOUSE CARPET | D158: 3000 | E158: Budget | F158: Reserve | H158: =D158/60 -> 50 | I158: =H158/12 -> 4.166666667
A159: 2015 | B159: 905 | C159: CLUB HOUSE CARPET | D159: 3164 | E159: Actual | F159: Reserve | H159: =D159/60 -> 52.73333333 | I159: =H159/12 -> 4.394444444
A160: 2015 | B160: 914 | C160: PAINTING | D160: 18000 | E160: Budget | F160: Reserve | H160: =D160/60 -> 300 | I160: =H160/12 -> 25
A161: 2015 | B161: 914 | C161: PAINTING | D161: 19694 | E161: Actual | F161: Reserve | H161: =D161/60 -> 328.2333333 | I161: =H161/12 -> 27.35277778
A162: 2015 | B162: 915 | C162: GARAGE DOORS & OPERATORS | D162: 0 | E162: Budget | F162: Reserve | H162: =D162/60 -> 0 | I162: =H162/12 -> 0
A163: 2015 | B163: 915 | C163: GARAGE DOORS & OPERATORS | D163: 1607 | E163: Actual | F163: Reserve | H163: =D163/60 -> 26.78333333 | I163: =H163/12 -> 2.231944444
A164: 2015 | B164: 916 | C164: GUTTERS & DOWNSPOUTS | D164: 0 | E164: Budget | F164: Reserve | H164: =D164/60 -> 0 | I164: =H164/12 -> 0
A165: 2015 | B165: 916 | C165: GUTTERS & DOWNSPOUTS | D165: 0 | E165: Actual | F165: Reserve | H165: =D165/60 -> 0 | I165: =H165/12 -> 0
A166: 2015 | B166: 917 | C166: HVAC FURNACE | D166: 4000 | E166: Budget | F166: Reserve | H166: =D166/60 -> 66.66666667 | I166: =H166/12 -> 5.555555556
A167: 2015 | B167: 917 | C167: HVAC FURNACE | D167: 1859 | E167: Actual | F167: Reserve | H167: =D167/60 -> 30.98333333 | I167: =H167/12 -> 2.581944444
A168: 2015 | B168: 922 | C168: MAJOR LANDSCAPE RESTORATION | D168: 9000 | E168: Budget | F168: Reserve | H168: =D168/60 -> 150 | I168: =H168/12 -> 12.5
A169: 2015 | B169: 922 | C169: MAJOR LANDSCAPE RESTORATION | D169: 11093 | E169: Actual | F169: Reserve | H169: =D169/60 -> 184.8833333 | I169: =H169/12 -> 15.40694444
A170: 2015 | B170: 925 | C170: CLUB HOUSE WATER HEATER | D170: 800 | E170: Budget | F170: Reserve | H170: =D170/60 -> 13.33333333 | I170: =H170/12 -> 1.111111111
A171: 2015 | B171: 925 | C171: CLUB HOUSE WATER HEATER | D171: 973 | E171: Actual | F171: Reserve | H171: =D171/60 -> 16.21666667 | I171: =H171/12 -> 1.351388889
A172: 2015 | B172: 926 | C172: SIDING & TRIM REPAIR | D172: 12000 | E172: Budget | F172: Reserve | H172: =D172/60 -> 200 | I172: =H172/12 -> 16.66666667
A173: 2015 | B173: 926 | C173: SIDING & TRIM REPAIR | D173: 6686 | E173: Actual | F173: Reserve | H173: =D173/60 -> 111.4333333 | I173: =H173/12 -> 9.286111111
A174: 2015 | B174: 927 | C174: WINDOW REPLACEMENT | D174: 5000 | E174: Budget | F174: Reserve | H174: =D174/60 -> 83.33333333 | I174: =H174/12 -> 6.944444444
A175: 2015 | B175: 927 | C175: WINDOW REPLACEMENT | D175: 7600 | E175: Actual | F175: Reserve | H175: =D175/60 -> 126.6666667 | I175: =H175/12 -> 10.55555556
A176: 2016 | B176: 800 | C176: CORDATA BUSINESS PARK | D176: 2800 | E176: Budget | F176: Expense | H176: =D176/60 -> 46.66666667 | I176: =H176/12 -> 3.888888889
A177: 2016 | B177: 800 | C177: CORDATA BUSINESS PARK | D177: 2709 | E177: Actual | F177: Expense | H177: =D177/60 -> 45.15 | I177: =H177/12 -> 3.7625
A178: 2016 | B178: 801 | C178: INSURANCE | D178: 20800 | E178: Budget | F178: Expense | H178: =D178/60 -> 346.6666667 | I178: =H178/12 -> 28.88888889
A179: 2016 | B179: 801 | C179: INSURANCE | D179: 20609 | E179: Actual | F179: Expense | H179: =D179/60 -> 343.4833333 | I179: =H179/12 -> 28.62361111
A180: 2016 | B180: 802 | C180: OFFICE EXPENSE | D180: 1000 | E180: Budget | F180: Expense | H180: =D180/60 -> 16.66666667 | I180: =H180/12 -> 1.388888889
A181: 2016 | B181: 802 | C181: OFFICE EXPENSE | D181: 875 | E181: Actual | F181: Expense | H181: =D181/60 -> 14.58333333 | I181: =H181/12 -> 1.215277778
A182: 2016 | B182: 804 | C182: CLUBHOUSE UTILITIES | D182: 1100 | E182: Budget | F182: Expense | H182: =D182/60 -> 18.33333333 | I182: =H182/12 -> 1.527777778
A183: 2016 | B183: 804 | C183: CLUBHOUSE UTILITIES | D183: 1068 | E183: Actual | F183: Expense | H183: =D183/60 -> 17.8 | I183: =H183/12 -> 1.483333333
A184: 2016 | B184: 805 | C184: CLUBHOUSE CLEANING/SUPPLIES | D184: 1200 | E184: Budget | F184: Expense | H184: =D184/60 -> 20 | I184: =H184/12 -> 1.666666667
A185: 2016 | B185: 805 | C185: CLUBHOUSE CLEANING/SUPPLIES | D185: 831 | E185: Actual | F185: Expense | H185: =D185/60 -> 13.85 | I185: =H185/12 -> 1.154166667
A186: 2016 | B186: 806 | C186: GENERAL MAINTENANCE | D186: 20000 | E186: Budget | F186: Expense | H186: =D186/60 -> 333.3333333 | I186: =H186/12 -> 27.77777778
A187: 2016 | B187: 806 | C187: GENERAL MAINTENANCE | D187: 19609 | E187: Actual | F187: Expense | H187: =D187/60 -> 326.8166667 | I187: =H187/12 -> 27.23472222
A188: 2016 | B188: 807 | C188: PROFESSIONAL SERVICES | D188: 2500 | E188: Budget | F188: Expense | H188: =D188/60 -> 41.66666667 | I188: =H188/12 -> 3.472222222
A189: 2016 | B189: 807 | C189: PROFESSIONAL SERVICES | D189: 3306 | E189: Actual | F189: Expense | H189: =D189/60 -> 55.1 | I189: =H189/12 -> 4.591666667
A190: 2016 | B190: 808 | C190: SUBSCRIPTIONS & DUES | D190: 300 | E190: Budget | F190: Expense | H190: =D190/60 -> 5 | I190: =H190/12 -> 0.4166666667
A191: 2016 | B191: 808 | C191: SUBSCRIPTIONS & DUES | D191: 225 | E191: Actual | F191: Expense | H191: =D191/60 -> 3.75 | I191: =H191/12 -> 0.3125
A192: 2016 | B192: 810 | C192: WATER & SEWER | D192: 58500 | E192: Budget | F192: Expense | H192: =D192/60 -> 975 | I192: =H192/12 -> 81.25
A193: 2016 | B193: 810 | C193: WATER & SEWER | D193: 57437 | E193: Actual | F193: Expense | H193: =D193/60 -> 957.2833333 | I193: =H193/12 -> 79.77361111
A194: 2016 | B194: 811 | C194: LANDSCAPE-GENERAL | D194: 64000 | E194: Budget | F194: Expense | H194: =D194/60 -> 1066.666667 | I194: =H194/12 -> 88.88888889
A195: 2016 | B195: 811 | C195: LANDSCAPE-GENERAL | D195: 63968 | E195: Actual | F195: Expense | H195: =D195/60 -> 1066.133333 | I195: =H195/12 -> 88.84444444
A196: 2016 | B196: 813 | C196: LANDSCAPE-PLANTS & BARK | D196: 3000 | E196: Budget | F196: Expense | H196: =D196/60 -> 50 | I196: =H196/12 -> 4.166666667
A197: 2016 | B197: 813 | C197: LANDSCAPE-PLANTS & BARK | D197: 4013 | E197: Actual | F197: Expense | H197: =D197/60 -> 66.88333333 | I197: =H197/12 -> 5.573611111
A198: 2016 | B198: 814 | C198: COMCAST CABLE | D198: 35000 | E198: Budget | F198: Expense | H198: =D198/60 -> 583.3333333 | I198: =H198/12 -> 48.61111111
A199: 2016 | B199: 814 | C199: COMCAST CABLE | D199: 34205 | E199: Actual | F199: Expense | H199: =D199/60 -> 570.0833333 | I199: =H199/12 -> 47.50694444
A200: 2016 | B200: 816 | C200: RESERVE FUND ACCOUNT | D200: 64000 | E200: Budget | F200: Expense | H200: =D200/60 -> 1066.666667 | I200: =H200/12 -> 88.88888889
... 201 more rows

Sheet ExpenseDB BKUP
A1: Year | B1: Acct Nbr | C1: Acct Name | D1: Amount | E1: BudgetActual | F1: Expense Reserve | G1: Notes | H1: Per Unit/Yr | I1: Per Unit/Month
A2: 2012 | B2: 800 | C2: CORDATA BUSINESS PARK | D2: 2400 | E2: Budget | F2: Expense | H2: =D2/60 -> 40 | I2: =H2/12 -> 3.333333333
A3: 2012 | B3: 800 | C3: CORDATA BUSINESS PARK | D3: 2356.95 | E3: Actual | F3: Expense | H3: =D3/60 -> 39.2825 | I3: =H3/12 -> 3.273541667
A4: 2012 | B4: 801 | C4: INSURANCE | D4: 18000 | E4: Budget | F4: Expense | H4: =D4/60 -> 300 | I4: =H4/12 -> 25
A5: 2012 | B5: 801 | C5: INSURANCE | D5: 21769 | E5: Actual | F5: Expense | H5: =D5/60 -> 362.8166667 | I5: =H5/12 -> 30.23472222
A6: 2012 | B6: 802 | C6: OFFICE EXPENSE | D6: 1000 | E6: Budget | F6: Expense | H6: =D6/60 -> 16.66666667 | I6: =H6/12 -> 1.388888889
A7: 2012 | B7: 802 | C7: OFFICE EXPENSE | D7: 1526 | E7: Actual | F7: Expense | H7: =D7/60 -> 25.43333333 | I7: =H7/12 -> 2.119444444
A8: 2012 | B8: 804 | C8: CLUBHOUSE UTILITIES | D8: 1400 | E8: Budget | F8: Expense | H8: =D8/60 -> 23.33333333 | I8: =H8/12 -> 1.944444444
A9: 2012 | B9: 804 | C9: CLUBHOUSE UTILITIES | D9: 1130 | E9: Actual | F9: Expense | H9: =D9/60 -> 18.83333333 | I9: =H9/12 -> 1.569444444
A10: 2012 | B10: 805 | C10: CLUBHOUSE CLEANING/SUPPLIES | D10: 800 | E10: Budget | F10: Expense | H10: =D10/60 -> 13.33333333 | I10: =H10/12 -> 1.111111111
A11: 2012 | B11: 805 | C11: CLUBHOUSE CLEANING/SUPPLIES | D11: 685 | E11: Actual | F11: Expense | H11: =D11/60 -> 11.41666667 | I11: =H11/12 -> 0.9513888889
A12: 2012 | B12: 806 | C12: GENERAL MAINTENANCE | D12: 20000 | E12: Budget | F12: Expense | H12: =D12/60 -> 333.3333333 | I12: =H12/12 -> 27.77777778
A13: 2012 | B13: 806 | C13: GENERAL MAINTENANCE | D13: 18479 | E13: Actual | F13: Expense | H13: =D13/60 -> 307.9833333 | I13: =H13/12 -> 25.66527778
A14: 2012 | B14: 807 | C14: PROFESSIONAL SERVICES | D14: 2200 | E14: Budget | F14: Expense | H14: =D14/60 -> 36.66666667 | I14: =H14/12 -> 3.055555556
A15: 2012 | B15: 807 | C15: PROFESSIONAL SERVICES | D15: 4530 | E15: Actual | F15: Expense | H15: =D15/60 -> 75.5 | I15: =H15/12 -> 6.291666667
A16: 2012 | B16: 808 | C16: SUBSCRIPTIONS & DUES | D16: 400 | E16: Budget | F16: Expense | H16: =D16/60 -> 6.666666667 | I16: =H16/12 -> 0.5555555556
A17: 2012 | B17: 808 | C17: SUBSCRIPTIONS & DUES | D17: 348.23 | E17: Actual | F17: Expense | H17: =D17/60 -> 5.803833333 | I17: =H17/12 -> 0.4836527778
A18: 2012 | B18: 810 | C18: WATER & SEWER | D18: 50000 | E18: Budget | F18: Expense | H18: =D18/60 -> 833.3333333 | I18: =H18/12 -> 69.44444444
A19: 2012 | B19: 810 | C19: WATER & SEWER | D19: 45785 | E19: Actual | F19: Expense | H19: =D19/60 -> 763.0833333 | I19: =H19/12 -> 63.59027778
A20: 2012 | B20: 811 | C20: LANDSCAPE-GENERAL | D20: 65000 | E20: Budget | F20: Expense | H20: =D20/60 -> 1083.333333 | I20: =H20/12 -> 90.27777778
A21: 2012 | B21: 811 | C21: LANDSCAPE-GENERAL | D21: 63598 | E21: Actual | F21: Expense | H21: =D21/60 -> 1059.966667 | I21: =H21/12 -> 88.33055556
A22: 2012 | B22: 813 | C22: LANDSCAPE-PLANTS & BARK | D22: 4000 | E22: Budget | F22: Expense | H22: =D22/60 -> 66.66666667 | I22: =H22/12 -> 5.555555556
A23: 2012 | B23: 813 | C23: LANDSCAPE-PLANTS & BARK | D23: 3832.21 | E23: Actual | F23: Expense | H23: =D23/60 -> 63.87016667 | I23: =H23/12 -> 5.322513889
A24: 2012 | B24: 814 | C24: COMCAST CABLE | D24: 38000 | E24: Budget | F24: Expense | H24: =D24/60 -> 633.3333333 | I24: =H24/12 -> 52.77777778
A25: 2012 | B25: 814 | C25: COMCAST CABLE | D25: 37309 | E25: Actual | F25: Expense | H25: =D25/60 -> 621.8166667 | I25: =H25/12 -> 51.81805556
A26: 2012 | B26: 816 | C26: RESERVE FUND ACCOUNT | D26: 56000 | E26: Budget | F26: Expense | H26: =D26/60 -> 933.3333333 | I26: =H26/12 -> 77.77777778
A27: 2012 | B27: 816 | C27: RESERVE FUND ACCOUNT | D27: 60900 | E27: Actual | F27: Expense | H27: =D27/60 -> 1015 | I27: =H27/12 -> 84.58333333
A28: 2012 | B28: 819 | C28: BUILDING STRUCTURE | D28: 43654.5 | E28: Actual | F28: Reserve | H28: =D28/60 -> 727.575 | I28: =H28/12 -> 60.63125
A29: 2012 | B29: 819 | C29: BUILDING STRUCTURE | D29: 45000 | E29: Budget | F29: Reserve | H29: =D29/60 -> 750 | I29: =H29/12 -> 62.5
A30: 2012 | B30: 821 | C30: DRAINAGE | D30: 3739 | E30: Actual | F30: Reserve | H30: =D30/60 -> 62.31666667 | I30: =H30/12 -> 5.193055556
A31: 2012 | B31: 821 | C31: DRAINAGE | D31: 3000 | E31: Budget | F31: Reserve | H31: =D31/60 -> 50 | I31: =H31/12 -> 4.166666667
A32: 2012 | B32: 822 | C32: GRAVEL PATHWAYS | D32: 0 | E32: Actual | F32: Reserve | H32: =D32/60 -> 0 | I32: =H32/12 -> 0
A33: 2012 | B33: 822 | C33: GRAVEL PATHWAYS | D33: 0 | E33: Budget | F33: Reserve | H33: =D33/60 -> 0 | I33: =H33/12 -> 0
A34: 2012 | B34: 899 | C34: CONTINGENCY FUND | D34: 4000 | E34: Budget | F34: Expense | H34: =D34/60 -> 66.66666667 | I34: =H34/12 -> 5.555555556
A35: 2012 | B35: 899 | C35: CONTINGENCY FUND | D35: 1600 | E35: Actual | F35: Expense | H35: =D35/60 -> 26.66666667 | I35: =H35/12 -> 2.222222222
A36: 2012 | B36: 914 | C36: PAINTING | D36: 14000 | E36: Budget | F36: Reserve | H36: =D36/60 -> 233.3333333 | I36: =H36/12 -> 19.44444444
A37: 2012 | B37: 914 | C37: PAINTING | D37: 13527.34 | E37: Actual | F37: Reserve | H37: =D37/60 -> 225.4556667 | I37: =H37/12 -> 18.78797222
A38: 2013 | B38: 800 | C38: CORDATA BUSINESS PARK | D38: 2400 | E38: Budget | F38: Expense | H38: =D38/60 -> 40 | I38: =H38/12 -> 3.333333333
A39: 2013 | B39: 800 | C39: CORDATA BUSINESS PARK | D39: 2305 | E39: Actual | F39: Expense | H39: =D39/60 -> 38.41666667 | I39: =H39/12 -> 3.201388889
A40: 2013 | B40: 801 | C40: INSURANCE | D40: 22000 | E40: Budget | F40: Expense | H40: =D40/60 -> 366.6666667 | I40: =H40/12 -> 30.55555556
A41: 2013 | B41: 801 | C41: INSURANCE | D41: 21769 | E41: Actual | F41: Expense | H41: =D41/60 -> 362.8166667 | I41: =H41/12 -> 30.23472222
A42: 2013 | B42: 802 | C42: OFFICE EXPENSE | D42: 1300 | E42: Budget | F42: Expense | H42: =D42/60 -> 21.66666667 | I42: =H42/12 -> 1.805555556
A43: 2013 | B43: 802 | C43: OFFICE EXPENSE | D43: 909 | E43: Actual | F43: Expense | H43: =D43/60 -> 15.15 | I43: =H43/12 -> 1.2625
A44: 2013 | B44: 804 | C44: CLUBHOUSE UTILITIES | D44: 1400 | E44: Budget | F44: Expense | H44: =D44/60 -> 23.33333333 | I44: =H44/12 -> 1.944444444
A45: 2013 | B45: 804 | C45: CLUBHOUSE UTILITIES | D45: 1056 | E45: Actual | F45: Expense | H45: =D45/60 -> 17.6 | I45: =H45/12 -> 1.466666667
A46: 2013 | B46: 805 | C46: CLUBHOUSE CLEANING/SUPPLIES | D46: 800 | E46: Budget | F46: Expense | H46: =D46/60 -> 13.33333333 | I46: =H46/12 -> 1.111111111
A47: 2013 | B47: 805 | C47: CLUBHOUSE CLEANING/SUPPLIES | D47: 622 | E47: Actual | F47: Expense | H47: =D47/60 -> 10.36666667 | I47: =H47/12 -> 0.8638888889
A48: 2013 | B48: 806 | C48: GENERAL MAINTENANCE | D48: 20000 | E48: Budget | F48: Expense | H48: =D48/60 -> 333.3333333 | I48: =H48/12 -> 27.77777778
A49: 2013 | B49: 806 | C49: GENERAL MAINTENANCE | D49: 17404 | E49: Actual | F49: Expense | H49: =D49/60 -> 290.0666667 | I49: =H49/12 -> 24.17222222
A50: 2013 | B50: 807 | C50: PROFESSIONAL SERVICES | D50: 2600 | E50: Budget | F50: Expense | H50: =D50/60 -> 43.33333333 | I50: =H50/12 -> 3.611111111
A51: 2013 | B51: 807 | C51: PROFESSIONAL SERVICES | D51: 2410 | E51: Actual | F51: Expense | H51: =D51/60 -> 40.16666667 | I51: =H51/12 -> 3.347222222
A52: 2013 | B52: 808 | C52: SUBSCRIPTIONS & DUES | D52: 500 | E52: Budget | F52: Expense | H52: =D52/60 -> 8.333333333 | I52: =H52/12 -> 0.6944444444
A53: 2013 | B53: 808 | C53: SUBSCRIPTIONS & DUES | D53: 240 | E53: Actual | F53: Expense | H53: =D53/60 -> 4 | I53: =H53/12 -> 0.3333333333
A54: 2013 | B54: 810 | C54: WATER & SEWER | D54: 50000 | E54: Budget | F54: Expense | H54: =D54/60 -> 833.3333333 | I54: =H54/12 -> 69.44444444
A55: 2013 | B55: 810 | C55: WATER & SEWER | D55: 49241 | E55: Actual | F55: Expense | H55: =D55/60 -> 820.6833333 | I55: =H55/12 -> 68.39027778
A56: 2013 | B56: 811 | C56: LANDSCAPE-GENERAL | D56: 65000 | E56: Budget | F56: Expense | H56: =D56/60 -> 1083.333333 | I56: =H56/12 -> 90.27777778
A57: 2013 | B57: 811 | C57: LANDSCAPE-GENERAL | D57: 63550 | E57: Actual | F57: Expense | H57: =D57/60 -> 1059.166667 | I57: =H57/12 -> 88.26388889
A58: 2013 | B58: 813 | C58: LANDSCAPE-PLANTS & BARK | D58: 4000 | E58: Budget | F58: Expense | H58: =D58/60 -> 66.66666667 | I58: =H58/12 -> 5.555555556
A59: 2013 | B59: 813 | C59: LANDSCAPE-PLANTS & BARK | D59: 4197 | E59: Actual | F59: Expense | H59: =D59/60 -> 69.95 | I59: =H59/12 -> 5.829166667
A60: 2013 | B60: 814 | C60: COMCAST CABLE | D60: 40000 | E60: Budget | F60: Expense | H60: =D60/60 -> 666.6666667 | I60: =H60/12 -> 55.55555556
A61: 2013 | B61: 814 | C61: COMCAST CABLE | D61: 39679 | E61: Actual | F61: Expense | H61: =D61/60 -> 661.3166667 | I61: =H61/12 -> 55.10972222
A62: 2013 | B62: 816 | C62: RESERVE FUND ACCOUNT | D62: 56000 | E62: Budget | F62: Expense | H62: =D62/60 -> 933.3333333 | I62: =H62/12 -> 77.77777778
A63: 2013 | B63: 816 | C63: RESERVE FUND ACCOUNT | D63: 56400 | E63: Actual | F63: Expense | H63: =D63/60 -> 940 | I63: =H63/12 -> 78.33333333
A64: 2013 | B64: 821 | C64: DRAINAGE | D64: 4000 | E64: Budget | F64: Reserve | H64: =D64/60 -> 66.66666667 | I64: =H64/12 -> 5.555555556
A65: 2013 | B65: 821 | C65: DRAINAGE | D65: 1498 | E65: Actual | F65: Reserve | H65: =D65/60 -> 24.96666667 | I65: =H65/12 -> 2.080555556
A66: 2013 | B66: 899 | C66: CONTINGENCY FUND | D66: 5000 | E66: Budget | F66: Expense | H66: =D66/60 -> 83.33333333 | I66: =H66/12 -> 6.944444444
A67: 2013 | B67: 899 | C67: CONTINGENCY FUND | D67: 0 | E67: Actual | F67: Expense | H67: =D67/60 -> 0 | I67: =H67/12 -> 0
A68: 2013 | B68: 900 | C68: ASPHALT REPAIRS | D68: 0 | E68: Budget | F68: Reserve | H68: =D68/60 -> 0 | I68: =H68/12 -> 0
A69: 2013 | B69: 900 | C69: ASPHALT REPAIR | D69: 2193 | E69: Actual | F69: Reserve | H69: =D69/60 -> 36.55 | I69: =H69/12 -> 3.045833333
A70: 2013 | B70: 914 | C70: PAINTING | D70: 16000 | E70: Budget | F70: Reserve | H70: =D70/60 -> 266.6666667 | I70: =H70/12 -> 22.22222222
A71: 2013 | B71: 914 | C71: PAINTING | D71: 18750 | E71: Actual | F71: Reserve | H71: =D71/60 -> 312.5 | I71: =H71/12 -> 26.04166667
A72: 2013 | B72: 919 | C72: LANDSCAPE WALKING PATH | D72: 10000 | E72: Budget | F72: Reserve | H72: =D72/60 -> 166.6666667 | I72: =H72/12 -> 13.88888889
A73: 2013 | B73: 919 | C73: LANDSCAPE WALKING PATH | D73: 9240 | E73: Actual | F73: Reserve | H73: =D73/60 -> 154 | I73: =H73/12 -> 12.83333333
A74: 2013 | B74: 926 | C74: SIDING & TRIM REPAIR | D74: 0 | E74: Budget | F74: Reserve | H74: =D74/60 -> 0 | I74: =H74/12 -> 0
A75: 2013 | B75: 926 | C75: SIDING & TRIM REPAIR | D75: 0 | E75: Actual | F75: Reserve | H75: =D75/60 -> 0 | I75: =H75/12 -> 0
A76: 2013 | B76: 927 | C76: WINDOW REPLACEMENT | D76: 20000 | E76: Budget | F76: Reserve | H76: =D76/60 -> 333.3333333 | I76: =H76/12 -> 27.77777778
A77: 2013 | B77: 927 | C77: WINDOW REPLACEMENT | D77: 16572 | E77: Actual | F77: Reserve | H77: =D77/60 -> 276.2 | I77: =H77/12 -> 23.01666667
A78: 2014 | B78: 800 | C78: CORDATA BUSINESS PARK | D78: 2400 | E78: Budget | F78: Expense | H78: =D78/60 -> 40 | I78: =H78/12 -> 3.333333333
A79: 2014 | B79: 800 | C79: CORDATA BUSINESS PARK | D79: 2616 | E79: Actual | F79: Expense | H79: =D79/60 -> 43.6 | I79: =H79/12 -> 3.633333333
A80: 2014 | B80: 801 | C80: INSURANCE | D80: 22000 | E80: Budget | F80: Expense | H80: =D80/60 -> 366.6666667 | I80: =H80/12 -> 30.55555556
A81: 2014 | B81: 801 | C81: INSURANCE | D81: 21769 | E81: Actual | F81: Expense | H81: =D81/60 -> 362.8166667 | I81: =H81/12 -> 30.23472222
A82: 2014 | B82: 802 | C82: OFFICE EXPENSE | D82: 1400 | E82: Budget | F82: Expense | H82: =D82/60 -> 23.33333333 | I82: =H82/12 -> 1.944444444
A83: 2014 | B83: 802 | C83: OFFICE EXPENSE | D83: 968 | E83: Actual | F83: Expense | H83: =D83/60 -> 16.13333333 | I83: =H83/12 -> 1.344444444
A84: 2014 | B84: 804 | C84: CLUBHOUSE UTILITIES | D84: 1200 | E84: Budget | F84: Expense | H84: =D84/60 -> 20 | I84: =H84/12 -> 1.666666667
A85: 2014 | B85: 804 | C85: CLUBHOUSE UTILITIES | D85: 1090 | E85: Actual | F85: Expense | H85: =D85/60 -> 18.16666667 | I85: =H85/12 -> 1.513888889
A86: 2014 | B86: 805 | C86: CLUBHOUSE CLEANING/SUPPLIES | D86: 800 | E86: Budget | F86: Expense | H86: =D86/60 -> 13.33333333 | I86: =H86/12 -> 1.111111111
A87: 2014 | B87: 805 | C87: CLUBHOUSE CLEANING/SUPPLIES | D87: 771 | E87: Actual | F87: Expense | H87: =D87/60 -> 12.85 | I87: =H87/12 -> 1.070833333
A88: 2014 | B88: 806 | C88: GENERAL MAINTENANCE | D88: 19000 | E88: Budget | F88: Expense | H88: =D88/60 -> 316.6666667 | I88: =H88/12 -> 26.38888889
A89: 2014 | B89: 806 | C89: GENERAL MAINTENANCE | D89: 20001 | E89: Actual | F89: Expense | H89: =D89/60 -> 333.35 | I89: =H89/12 -> 27.77916667
A90: 2014 | B90: 807 | C90: PROFESSIONAL SERVICES | D90: 2600 | E90: Budget | F90: Expense | H90: =D90/60 -> 43.33333333 | I90: =H90/12 -> 3.611111111
A91: 2014 | B91: 807 | C91: PROFESSIONAL SERVICES | D91: 1540 | E91: Actual | F91: Expense | H91: =D91/60 -> 25.66666667 | I91: =H91/12 -> 2.138888889
A92: 2014 | B92: 808 | C92: SUBSCRIPTIONS & DUES | D92: 400 | E92: Budget | F92: Expense | H92: =D92/60 -> 6.666666667 | I92: =H92/12 -> 0.5555555556
A93: 2014 | B93: 808 | C93: SUBSCRIPTIONS & DUES | D93: 200 | E93: Actual | F93: Expense | H93: =D93/60 -> 3.333333333 | I93: =H93/12 -> 0.2777777778
A94: 2014 | B94: 810 | C94: WATER & SEWER | D94: 55000 | E94: Budget | F94: Expense | H94: =D94/60 -> 916.6666667 | I94: =H94/12 -> 76.38888889
A95: 2014 | B95: 810 | C95: WATER & SEWER | D95: 52622 | E95: Actual | F95: Expense | H95: =D95/60 -> 877.0333333 | I95: =H95/12 -> 73.08611111
A96: 2014 | B96: 811 | C96: LANDSCAPE-GENERAL | D96: 65000 | E96: Budget | F96: Expense | H96: =D96/60 -> 1083.333333 | I96: =H96/12 -> 90.27777778
A97: 2014 | B97: 811 | C97: LANDSCAPE-GENERAL | D97: 63647 | E97: Actual | F97: Expense | H97: =D97/60 -> 1060.783333 | I97: =H97/12 -> 88.39861111
A98: 2014 | B98: 813 | C98: LANDSCAPE-PLANTS & BARK | D98: 4000 | E98: Budget | F98: Expense | H98: =D98/60 -> 66.66666667 | I98: =H98/12 -> 5.555555556
A99: 2014 | B99: 813 | C99: LANDSCAPE-PLANTS & BARK | D99: 4695 | E99: Actual | F99: Expense | H99: =D99/60 -> 78.25 | I99: =H99/12 -> 6.520833333
A100: 2014 | B100: 814 | C100: COMCAST CABLE | D100: 43000 | E100: Budget | F100: Expense | H100: =D100/60 -> 716.6666667 | I100: =H100/12 -> 59.72222222
A101: 2014 | B101: 814 | C101: COMCAST CABLE | D101: 41728 | E101: Actual | F101: Expense | H101: =D101/60 -> 695.4666667 | I101: =H101/12 -> 57.95555556
A102: 2014 | B102: 816 | C102: RESERVE FUND ACCOUNT | D102: 56400 | E102: Budget | F102: Expense | H102: =D102/60 -> 940 | I102: =H102/12 -> 78.33333333
A103: 2014 | B103: 816 | C103: RESERVE FUND ACCOUNT | D103: 56400 | E103: Actual | F103: Expense | H103: =D103/60 -> 940 | I103: =H103/12 -> 78.33333333
A104: 2014 | B104: 899 | C104: CONTINGENCY FUND | D104: 5000 | E104: Budget | F104: Expense | H104: =D104/60 -> 83.33333333 | I104: =H104/12 -> 6.944444444
A105: 2014 | B105: 899 | C105: CONTINGENCY FUND | D105: 0 | E105: Actual | F105: Expense | H105: =D105/60 -> 0 | I105: =H105/12 -> 0
A106: 2014 | B106: 900 | C106: ASPHALT REPAIRS | D106: 2500 | E106: Budget | F106: Reserve | H106: =D106/60 -> 41.66666667 | I106: =H106/12 -> 3.472222222
A107: 2014 | B107: 900 | C107: ASPHALT REPAIR | D107: 4109 | E107: Actual | F107: Reserve | H107: =D107/60 -> 68.48333333 | I107: =H107/12 -> 5.706944444
A108: 2014 | B108: 905 | C108: CLUB HOUSE CARPET | D108: 0 | E108: Budget | F108: Reserve | H108: =D108/60 -> 0 | I108: =H108/12 -> 0
A109: 2014 | B109: 905 | C109: CLUB HOUSE CARPET | D109: 0 | E109: Actual | F109: Reserve | H109: =D109/60 -> 0 | I109: =H109/12 -> 0
A110: 2014 | B110: 914 | C110: PAINTING | D110: 16000 | E110: Budget | F110: Reserve | H110: =D110/60 -> 266.6666667 | I110: =H110/12 -> 22.22222222
A111: 2014 | B111: 914 | C111: PAINTING | D111: 16403 | E111: Actual | F111: Reserve | H111: =D111/60 -> 273.3833333 | I111: =H111/12 -> 22.78194444
A112: 2014 | B112: 915 | C112: GARAGE DOORS & OPERATORS | D112: 0 | E112: Budget | F112: Reserve | H112: =D112/60 -> 0 | I112: =H112/12 -> 0
A113: 2014 | B113: 915 | C113: GARAGE DOORS & OPERATORS | D113: 1575 | E113: Actual | F113: Reserve | H113: =D113/60 -> 26.25 | I113: =H113/12 -> 2.1875
A114: 2014 | B114: 916 | C114: GUTTERS & DOWNSPOUTS | D114: 0 | E114: Budget | F114: Reserve | H114: =D114/60 -> 0 | I114: =H114/12 -> 0
A115: 2014 | B115: 916 | C115: GUTTERS & DOWNSPOUTS | D115: 627 | E115: Actual | F115: Reserve | H115: =D115/60 -> 10.45 | I115: =H115/12 -> 0.8708333333
A116: 2014 | B116: 917 | C116: HVAC FURNACE | D116: 0 | E116: Budget | F116: Reserve | H116: =D116/60 -> 0 | I116: =H116/12 -> 0
A117: 2014 | B117: 917 | C117: HVAC FURNACE | D117: 0 | E117: Actual | F117: Reserve | H117: =D117/60 -> 0 | I117: =H117/12 -> 0
A118: 2014 | B118: 918 | C118: IRRIGATION SYSTEM RESTORATION | D118: 0 | E118: Budget | F118: Reserve | H118: =D118/60 -> 0 | I118: =H118/12 -> 0
A119: 2014 | B119: 918 | C119: IRRIGATION SYSTEM RESTORATION | D119: 659 | E119: Actual | F119: Reserve | H119: =D119/60 -> 10.98333333 | I119: =H119/12 -> 0.9152777778
A120: 2014 | B120: 919 | C120: LANDSCAPE WALKING PATH | D120: 10000 | E120: Budget | F120: Reserve | H120: =D120/60 -> 166.6666667 | I120: =H120/12 -> 13.88888889
A121: 2014 | B121: 919 | C121: LANDSCAPE WALKING PATH | D121: 9240 | E121: Actual | F121: Reserve | H121: =D121/60 -> 154 | I121: =H121/12 -> 12.83333333
A122: 2014 | B122: 922 | C122: MAJOR LANDSCAPE RESTORATION | D122: 0 | E122: Budget | F122: Reserve | H122: =D122/60 -> 0 | I122: =H122/12 -> 0
A123: 2014 | B123: 922 | C123: MAJOR LANDSCAPE RESTORATION | D123: 1220 | E123: Actual | F123: Reserve | H123: =D123/60 -> 20.33333333 | I123: =H123/12 -> 1.694444444
A124: 2014 | B124: 925 | C124: CLUB HOUSE WATER HEATER | D124: 0 | E124: Budget | F124: Reserve | H124: =D124/60 -> 0 | I124: =H124/12 -> 0
A125: 2014 | B125: 925 | C125: CLUB HOUSE WATER HEATER | D125: 0 | E125: Actual | F125: Reserve | H125: =D125/60 -> 0 | I125: =H125/12 -> 0
A126: 2014 | B126: 926 | C126: SIDING & TRIM REPAIR | D126: 6000 | E126: Budget | F126: Reserve | H126: =D126/60 -> 100 | I126: =H126/12 -> 8.333333333
A127: 2014 | B127: 926 | C127: SIDING & TRIM REPAIR | D127: 8385 | E127: Actual | F127: Reserve | H127: =D127/60 -> 139.75 | I127: =H127/12 -> 11.64583333
A128: 2014 | B128: 927 | C128: WINDOW REPLACEMENT | D128: 12000 | E128: Budget | F128: Reserve | H128: =D128/60 -> 200 | I128: =H128/12 -> 16.66666667
A129: 2014 | B129: 927 | C129: WINDOW REPLACEMENT | D129: 9857 | E129: Actual | F129: Reserve | H129: =D129/60 -> 164.2833333 | I129: =H129/12 -> 13.69027778
A130: 2015 | B130: 800 | C130: CORDATA BUSINESS PARK | D130: 2650 | E130: Budget | F130: Expense | H130: =D130/60 -> 44.16666667 | I130: =H130/12 -> 3.680555556
A131: 2015 | B131: 800 | C131: CORDATA BUSINESS PARK | D131: 2753 | E131: Actual | F131: Expense | H131: =D131/60 -> 45.88333333 | I131: =H131/12 -> 3.823611111
A132: 2015 | B132: 801 | C132: INSURANCE | D132: 23000 | E132: Budget | F132: Expense | H132: =D132/60 -> 383.3333333 | I132: =H132/12 -> 31.94444444
A133: 2015 | B133: 801 | C133: INSURANCE | D133: 20127 | E133: Actual | F133: Expense | H133: =D133/60 -> 335.45 | I133: =H133/12 -> 27.95416667
A134: 2015 | B134: 802 | C134: OFFICE EXPENSE | D134: 1200 | E134: Budget | F134: Expense | H134: =D134/60 -> 20 | I134: =H134/12 -> 1.666666667
A135: 2015 | B135: 802 | C135: OFFICE EXPENSE | D135: 955 | E135: Actual | F135: Expense | H135: =D135/60 -> 15.91666667 | I135: =H135/12 -> 1.326388889
A136: 2015 | B136: 804 | C136: CLUBHOUSE UTILITIES | D136: 1500 | E136: Budget | F136: Expense | H136: =D136/60 -> 25 | I136: =H136/12 -> 2.083333333
A137: 2015 | B137: 804 | C137: CLUBHOUSE UTILITIES | D137: 1015 | E137: Actual | F137: Expense | H137: =D137/60 -> 16.91666667 | I137: =H137/12 -> 1.409722222
A138: 2015 | B138: 805 | C138: CLUBHOUSE CLEANING/SUPPLIES | D138: 850 | E138: Budget | F138: Expense | H138: =D138/60 -> 14.16666667 | I138: =H138/12 -> 1.180555556
A139: 2015 | B139: 805 | C139: CLUBHOUSE CLEANING/SUPPLIES | D139: 829 | E139: Actual | F139: Expense | H139: =D139/60 -> 13.81666667 | I139: =H139/12 -> 1.151388889
A140: 2015 | B140: 806 | C140: GENERAL MAINTENANCE | D140: 20000 | E140: Budget | F140: Expense | H140: =D140/60 -> 333.3333333 | I140: =H140/12 -> 27.77777778
A141: 2015 | B141: 806 | C141: GENERAL MAINTENANCE | D141: 18661 | E141: Actual | F141: Expense | H141: =D141/60 -> 311.0166667 | I141: =H141/12 -> 25.91805556
A142: 2015 | B142: 807 | C142: PROFESSIONAL SERVICES | D142: 3800 | E142: Budget | F142: Expense | H142: =D142/60 -> 63.33333333 | I142: =H142/12 -> 5.277777778
A143: 2015 | B143: 807 | C143: PROFESSIONAL SERVICES | D143: 3685 | E143: Actual | F143: Expense | H143: =D143/60 -> 61.41666667 | I143: =H143/12 -> 5.118055556
A144: 2015 | B144: 808 | C144: SUBSCRIPTIONS & DUES | D144: 300 | E144: Budget | F144: Expense | H144: =D144/60 -> 5 | I144: =H144/12 -> 0.4166666667
A145: 2015 | B145: 808 | C145: SUBSCRIPTIONS & DUES | D145: 225 | E145: Actual | F145: Expense | H145: =D145/60 -> 3.75 | I145: =H145/12 -> 0.3125
A146: 2015 | B146: 810 | C146: WATER & SEWER | D146: 56500 | E146: Budget | F146: Expense | H146: =D146/60 -> 941.6666667 | I146: =H146/12 -> 78.47222222
A147: 2015 | B147: 810 | C147: WATER & SEWER | D147: 53762 | E147: Actual | F147: Expense | H147: =D147/60 -> 896.0333333 | I147: =H147/12 -> 74.66944444
A148: 2015 | B148: 811 | C148: LANDSCAPE-GENERAL | D148: 64000 | E148: Budget | F148: Expense | H148: =D148/60 -> 1066.666667 | I148: =H148/12 -> 88.88888889
A149: 2015 | B149: 811 | C149: LANDSCAPE-GENERAL | D149: 64127 | E149: Actual | F149: Expense | H149: =D149/60 -> 1068.783333 | I149: =H149/12 -> 89.06527778
A150: 2015 | B150: 813 | C150: LANDSCAPE-PLANTS & BARK | D150: 3300 | E150: Budget | F150: Expense | H150: =D150/60 -> 55 | I150: =H150/12 -> 4.583333333
A151: 2015 | B151: 813 | C151: LANDSCAPE-PLANTS & BARK | D151: 2634 | E151: Actual | F151: Expense | H151: =D151/60 -> 43.9 | I151: =H151/12 -> 3.658333333
A152: 2015 | B152: 814 | C152: COMCAST CABLE | D152: 44700 | E152: Budget | F152: Expense | H152: =D152/60 -> 745 | I152: =H152/12 -> 62.08333333
A153: 2015 | B153: 814 | C153: COMCAST CABLE | D153: 43430 | E153: Actual | F153: Expense | H153: =D153/60 -> 723.8333333 | I153: =H153/12 -> 60.31944444
A154: 2015 | B154: 816 | C154: RESERVE FUND ACCOUNT | D154: 56400 | E154: Budget | F154: Expense | H154: =D154/60 -> 940 | I154: =H154/12 -> 78.33333333
A155: 2015 | B155: 816 | C155: RESERVE FUND ACCOUNT | D155: 60240 | E155: Actual | F155: Expense | H155: =D155/60 -> 1004 | I155: =H155/12 -> 83.66666667
A156: 2015 | B156: 900 | C156: ASPHALT REPAIR | D156: 0 | E156: Budget | F156: Reserve | H156: =D156/60 -> 0 | I156: =H156/12 -> 0
A157: 2015 | B157: 900 | C157: ASPHALT REPAIR | D157: 0 | E157: Actual | F157: Reserve | H157: =D157/60 -> 0 | I157: =H157/12 -> 0
A158: 2015 | B158: 905 | C158: CLUB HOUSE CARPET | D158: 3000 | E158: Budget | F158: Reserve | H158: =D158/60 -> 50 | I158: =H158/12 -> 4.166666667
A159: 2015 | B159: 905 | C159: CLUB HOUSE CARPET | D159: 3164 | E159: Actual | F159: Reserve | H159: =D159/60 -> 52.73333333 | I159: =H159/12 -> 4.394444444
A160: 2015 | B160: 914 | C160: PAINTING | D160: 18000 | E160: Budget | F160: Reserve | H160: =D160/60 -> 300 | I160: =H160/12 -> 25
A161: 2015 | B161: 914 | C161: PAINTING | D161: 19694 | E161: Actual | F161: Reserve | H161: =D161/60 -> 328.2333333 | I161: =H161/12 -> 27.35277778
A162: 2015 | B162: 915 | C162: GARAGE DOORS & OPERATORS | D162: 0 | E162: Budget | F162: Reserve | H162: =D162/60 -> 0 | I162: =H162/12 -> 0
A163: 2015 | B163: 915 | C163: GARAGE DOORS & OPERATORS | D163: 1607 | E163: Actual | F163: Reserve | H163: =D163/60 -> 26.78333333 | I163: =H163/12 -> 2.231944444
A164: 2015 | B164: 916 | C164: GUTTERS & DOWNSPOUTS | D164: 0 | E164: Budget | F164: Reserve | H164: =D164/60 -> 0 | I164: =H164/12 -> 0
A165: 2015 | B165: 916 | C165: GUTTERS & DOWNSPOUTS | D165: 0 | E165: Actual | F165: Reserve | H165: =D165/60 -> 0 | I165: =H165/12 -> 0
A166: 2015 | B166: 917 | C166: HVAC FURNACE | D166: 4000 | E166: Budget | F166: Reserve | H166: =D166/60 -> 66.66666667 | I166: =H166/12 -> 5.555555556
A167: 2015 | B167: 917 | C167: HVAC FURNACE | D167: 1859 | E167: Actual | F167: Reserve | H167: =D167/60 -> 30.98333333 | I167: =H167/12 -> 2.581944444
A168: 2015 | B168: 922 | C168: MAJOR LANDSCAPE RESTORATION | D168: 9000 | E168: Budget | F168: Reserve | H168: =D168/60 -> 150 | I168: =H168/12 -> 12.5
A169: 2015 | B169: 922 | C169: MAJOR LANDSCAPE RESTORATION | D169: 11093 | E169: Actual | F169: Reserve | H169: =D169/60 -> 184.8833333 | I169: =H169/12 -> 15.40694444
A170: 2015 | B170: 925 | C170: CLUB HOUSE WATER HEATER | D170: 800 | E170: Budget | F170: Reserve | H170: =D170/60 -> 13.33333333 | I170: =H170/12 -> 1.111111111
A171: 2015 | B171: 925 | C171: CLUB HOUSE WATER HEATER | D171: 973 | E171: Actual | F171: Reserve | H171: =D171/60 -> 16.21666667 | I171: =H171/12 -> 1.351388889
A172: 2015 | B172: 926 | C172: SIDING & TRIM REPAIR | D172: 12000 | E172: Budget | F172: Reserve | H172: =D172/60 -> 200 | I172: =H172/12 -> 16.66666667
A173: 2015 | B173: 926 | C173: SIDING & TRIM REPAIR | D173: 6686 | E173: Actual | F173: Reserve | H173: =D173/60 -> 111.4333333 | I173: =H173/12 -> 9.286111111
A174: 2015 | B174: 927 | C174: WINDOW REPLACEMENT | D174: 5000 | E174: Budget | F174: Reserve | H174: =D174/60 -> 83.33333333 | I174: =H174/12 -> 6.944444444
A175: 2015 | B175: 927 | C175: WINDOW REPLACEMENT | D175: 7600 | E175: Actual | F175: Reserve | H175: =D175/60 -> 126.6666667 | I175: =H175/12 -> 10.55555556
A176: 2016 | B176: 800 | C176: CORDATA BUSINESS PARK | D176: 2800 | E176: Budget | F176: Expense | H176: =D176/60 -> 46.66666667 | I176: =H176/12 -> 3.888888889
A177: 2016 | B177: 800 | C177: CORDATA BUSINESS PARK | D177: 2709 | E177: Actual | F177: Expense | H177: =D177/60 -> 45.15 | I177: =H177/12 -> 3.7625
A178: 2016 | B178: 801 | C178: INSURANCE | D178: 20800 | E178: Budget | F178: Expense | H178: =D178/60 -> 346.6666667 | I178: =H178/12 -> 28.88888889
A179: 2016 | B179: 801 | C179: INSURANCE | D179: 20609 | E179: Actual | F179: Expense | H179: =D179/60 -> 343.4833333 | I179: =H179/12 -> 28.62361111
A180: 2016 | B180: 802 | C180: OFFICE EXPENSE | D180: 1000 | E180: Budget | F180: Expense | H180: =D180/60 -> 16.66666667 | I180: =H180/12 -> 1.388888889
A181: 2016 | B181: 802 | C181: OFFICE EXPENSE | D181: 875 | E181: Actual | F181: Expense | H181: =D181/60 -> 14.58333333 | I181: =H181/12 -> 1.215277778
A182: 2016 | B182: 804 | C182: CLUBHOUSE UTILITIES | D182: 1100 | E182: Budget | F182: Expense | H182: =D182/60 -> 18.33333333 | I182: =H182/12 -> 1.527777778
A183: 2016 | B183: 804 | C183: CLUBHOUSE UTILITIES | D183: 1068 | E183: Actual | F183: Expense | H183: =D183/60 -> 17.8 | I183: =H183/12 -> 1.483333333
A184: 2016 | B184: 805 | C184: CLUBHOUSE CLEANING/SUPPLIES | D184: 1200 | E184: Budget | F184: Expense | H184: =D184/60 -> 20 | I184: =H184/12 -> 1.666666667
A185: 2016 | B185: 805 | C185: CLUBHOUSE CLEANING/SUPPLIES | D185: 831 | E185: Actual | F185: Expense | H185: =D185/60 -> 13.85 | I185: =H185/12 -> 1.154166667
A186: 2016 | B186: 806 | C186: GENERAL MAINTENANCE | D186: 20000 | E186: Budget | F186: Expense | H186: =D186/60 -> 333.3333333 | I186: =H186/12 -> 27.77777778
A187: 2016 | B187: 806 | C187: GENERAL MAINTENANCE | D187: 19609 | E187: Actual | F187: Expense | H187: =D187/60 -> 326.8166667 | I187: =H187/12 -> 27.23472222
A188: 2016 | B188: 807 | C188: PROFESSIONAL SERVICES | D188: 2500 | E188: Budget | F188: Expense | H188: =D188/60 -> 41.66666667 | I188: =H188/12 -> 3.472222222
A189: 2016 | B189: 807 | C189: PROFESSIONAL SERVICES | D189: 3306 | E189: Actual | F189: Expense | H189: =D189/60 -> 55.1 | I189: =H189/12 -> 4.591666667
A190: 2016 | B190: 808 | C190: SUBSCRIPTIONS & DUES | D190: 300 | E190: Budget | F190: Expense | H190: =D190/60 -> 5 | I190: =H190/12 -> 0.4166666667
A191: 2016 | B191: 808 | C191: SUBSCRIPTIONS & DUES | D191: 225 | E191: Actual | F191: Expense | H191: =D191/60 -> 3.75 | I191: =H191/12 -> 0.3125
A192: 2016 | B192: 810 | C192: WATER & SEWER | D192: 58500 | E192: Budget | F192: Expense | H192: =D192/60 -> 975 | I192: =H192/12 -> 81.25
A193: 2016 | B193: 810 | C193: WATER & SEWER | D193: 57437 | E193: Actual | F193: Expense | H193: =D193/60 -> 957.2833333 | I193: =H193/12 -> 79.77361111
A194: 2016 | B194: 811 | C194: LANDSCAPE-GENERAL | D194: 64000 | E194: Budget | F194: Expense | H194: =D194/60 -> 1066.666667 | I194: =H194/12 -> 88.88888889
A195: 2016 | B195: 811 | C195: LANDSCAPE-GENERAL | D195: 63968 | E195: Actual | F195: Expense | H195: =D195/60 -> 1066.133333 | I195: =H195/12 -> 88.84444444
A196: 2016 | B196: 813 | C196: LANDSCAPE-PLANTS & BARK | D196: 3000 | E196: Budget | F196: Expense | H196: =D196/60 -> 50 | I196: =H196/12 -> 4.166666667
A197: 2016 | B197: 813 | C197: LANDSCAPE-PLANTS & BARK | D197: 4013 | E197: Actual | F197: Expense | H197: =D197/60 -> 66.88333333 | I197: =H197/12 -> 5.573611111
A198: 2016 | B198: 814 | C198: COMCAST CABLE | D198: 35000 | E198: Budget | F198: Expense | H198: =D198/60 -> 583.3333333 | I198: =H198/12 -> 48.61111111
A199: 2016 | B199: 814 | C199: COMCAST CABLE | D199: 34205 | E199: Actual | F199: Expense | H199: =D199/60 -> 570.0833333 | I199: =H199/12 -> 47.50694444
A200: 2016 | B200: 816 | C200: RESERVE FUND ACCOUNT | D200: 64000 | E200: Budget | F200: Expense | H200: =D200/60 -> 1066.666667 | I200: =H200/12 -> 88.88888889
... 201 more rows
